Cogmind - Beta 17 @@@ ROGUE MODE // 2026.07.29 @ 00:45:56 Player: JP Result: Destroyed by G-34 Mercenary with Small Laser Performance ------------- Evolutions (0) 0 Regions Visited (2) 400 Robots Destroyed (14) 70 Value Destroyed (360) 360 Prototype IDs (0) 0 Alien Tech Used (0) 0 Bonus (0) 0 TOTAL SCORE: 830 Bonus ------- None Cogmind --------- Core Integrity 0/250 Matter 300/300 Energy 100/100 System Corruption 0% Temperature Cool (12) Movement Rolling (100) Location -10/Mines Parts ------- > --- POWER (1) -------- (None) > --- PROPULSION (2) --- Compact Wheel > --- UTILITY (2) ------ Medium Storage Unit Core Shielding > --- WEAPON (2) ------- Hammer > --- INVENTORY (10) --- Light Ion Engine Aluminum Leg Scrap Suit Sensor Array Sensor Array Signal Interpreter Particle Gun Light Assault Rifle Peak State ------------ > --- POWER ------------ Light Nuclear Core > --- PROPULSION ------- Light Treads Light Treads > --- UTILITY ---------- Medium Storage Unit Core Shielding > --- WEAPON ----------- Particle Gun Hammer > --- INVENTORY -------- Ion Engine Light Ion Engine Aluminum Leg Aluminum Leg Compact Wheel Medium Storage Unit Sensor Array Sensor Array Light Assault Rifle Rocket Launcher [Rating: 11] Favorites ----------- Power Ion Engine Engine Ion Engine Power Core Light Nuclear Core Propulsion Light Treads Treads Light Treads Leg Aluminum Leg Wheel Compact Wheel Utility Medium Storage Unit Device Heat Sink Storage Medium Storage Unit Protection Core Shielding Weapon Assault Rifle Energy Gun Small Laser Ballistic Gun Assault Rifle Launcher Rocket Launcher Impact Weapon Hammer Build | -11 -10 -10 ------- Run | Yrd Mat Min Slots Evolved . | . . . Power . | . . . Propulsion . | . . . Utility . | . . . Weapon . | . . . Parts Attached 20 | 6 10 4 Power 3 | 1 2 . Engine 2 | 1 1 . Core 1 | . 1 . Reactor . | . . . Propulsion 5 | 2 1 2 Treads 3 | 2 1 . Leg 1 | . . 1 Wheel 1 | . . 1 Hover . | . . . Flight . | . . . Utility 5 | 1 3 1 Device 1 | . 1 . Storage 3 | 1 1 1 Processor . | . . . Hackware . | . . . Protection 1 | . 1 . Artifact . | . . . Weapon 7 | 2 4 1 Energy Gun 2 | 1 1 . Energy Cannon . | . . . Ballistic Gun 3 | 1 2 . Ballistic Cannon . | . . . Launcher 1 | . . 1 Special Weapon . | . . . Impact Weapon 1 | . 1 . Slashing Weapon . | . . . Piercing Weapon . | . . . Special Melee Weapon . | . . . Unidentified Prototypes . | . . . Parts Lost 6 | . 2 4 Power 1 | . . 1 Propulsion 3 | . 1 2 Utility . | . . . Weapon 2 | . 1 1 Highest Loss Streak 2 | . 1 2 To Critical Strikes . | . . . Average Backups 7 | 2 7 8 Power 1 | . 1 1 Propulsion 2 | 1 3 1 Utility 1 | . . 3 Weapon 1 | . 1 1 Tool/Special . | . . . Unused Backups 7 | . 3 4 Power 1 | . . 1 Propulsion 4 | . 3 1 Utility 2 | . . 2 Weapon . | . . . Tool/Special . | . . . Average Slot Usage (%) 91 | . 89 95 Engine 6 | . 9 . Core 6 | . 4 12 Treads 22 | . 28 10 Leg 2 | . . 6 Wheel 3 | . . 9 Storage 14 | . 14 14 Protection 7 | . 3 14 Energy Gun 7 | . 11 . Ballistic Gun 9 | . 14 . Launcher 3 | . . 11 Impact Weapon 6 | . 2 14 Peak Build Rating 11 | 6 10 11 Average Rating 8 | 4 7 10 On Entrance 5 | . 6 10 Avg Prop Armor Cover (%) 12 | . . 12 Naked Turns . | . . . Heaviest Build 22 | 13 21 22 Greatest Support 40 | 40 40 40 Greatest Overweight (x) 2 | . . 2 Average Overweight (x) . | . . . Largest Inventory Capacity 10 | 8 10 10 Average Capacity 9 | 7 9 10 Most Carried 10 | 5 10 10 Average Carried 7 | 3 7 8 Final Capacity 10 | 8 10 10 Final Carried 9 | 5 9 9 Class Distribution -------------------- 100% | Mutant Dominant Class ---------------- Mutant | -10/Materials Mutant | -10/Mines Resources | -11 -10 -10 ----------- Run | Yrd Mat Min Matter Collected 505 | 53 378 74 Remotely . | . . . Salvage Created 505 | . 400 105 Parts 23 | . 20 3 Haulers Intercepted 2 | . 2 . Recyclers Shooed . | . . . Parts Field Recycled . | . . . Retrieved Matter . | . . . Parts Self-Destructed . | . . . Prevented . | . . . Parts Restored . | . . . Kills | -11 -10 -10 ------- Run | Yrd Mat Min Combat Hostiles Destroyed 10 | . 6 4 Melee 2 | . . 2 Guns 6 | . 6 . Classes Destroyed 7 | . 4 3 Worker 1 | . . 1 Builder 1 | . 1 . Hauler 2 | . 2 . Watcher 1 | . 1 . Swarmer 1 | . . 1 Grunt 8 | . 6 2 Assembled 1 | . . 1 Best Kill Streak 5 | . 5 2 Combat Bots Only 4 | . 4 1 Max Kills in Single Turn 1 | . 1 1 Gunslinging . | . . . Exploded . | . . . Melee 1 | . . 1 Uniques/NPCs Destroyed . | . . . Combat | -11 -10 -10 -------- Run | Yrd Mat Min Hostile Shots Fired 105 | . 42 63 Missed 24 | . 9 15 Hits 81 | . 33 48 Melee 3 | . . 3 Projectile 78 | . 33 45 Damage Taken 1210 | . 635 575 Core 251 | . 79 172 Absorbed by Shields . | . . . Redirected to Shielding 38 | . . 38 Core Remaining (%) 100 | 100 . . Volleys Fired 27 | . 27 . Largest 2 | . 2 . Hottest 40 | . 40 . Shots Fired 54 | . 54 . Gun 54 | . 54 . Cannon . | . . . Launcher . | . . . Special . | . . . Kinetic 54 | . 54 . Thermal . | . . . Explosive . | . . . Electromagnetic . | . . . Robot Hit Streak 10 | . 10 . Robot Miss Streak 2 | . 2 . Penetration Max . | . . . Secondary Targets . | . . . Shots Hit Robots 59 | . 41 18 Core Hits 17 | . 16 1 Critical Kills . | . . . Critical Parts Destroyed 6 | . 1 5 Critical Strikes 6 | . 1 5 Smash 6 | . 1 5 Melee Attacks 32 | . 4 28 Impact 32 | . 4 28 Slashing . | . . . Piercing . | . . . Sneak Attacks 4 | . 3 1 Combat Hostiles . | . . . Follow-up Attacks . | . . . Damage Inflicted 1151 | . 615 536 Guns 401 | . 401 . Cannons . | . . . Explosions . | . . . Melee 747 | . 211 536 Ramming 3 | . 3 . Kinetic 401 | . 401 . Thermal . | . . . Explosive . | . . . Electromagnetic . | . . . Impact 747 | . 211 536 Slashing . | . . . Piercing . | . . . Highest Corruption . | . . . Average Corruption . | . . . Corruption Purged . | . . . Corruption Blocked . | . . . Overload Shots . | . . . Overflow Damage 355 | . 127 228 Projectiles . | . . . Explosions . | . . . Melee 355 | . 127 228 Knockbacks . | . . . Impact . | . . . Kinetic . | . . . Secondary . | . . . Self-Inflicted Damage . | . . . Shots . | . . . Rammed 1 | . 1 . Targets Rammed 2 | . 2 . Kicked . | . . . Crushed 1 | . 1 . Highest Temperature 18 | . 18 4 Average Temperature 7 | . 8 3 Received Heat Transfer 666 | . 258 408 Siege Activations . | . . . Martial Activations . | . . . Shielding Activations . | . . . Robots Disrupted . | . . . Combat Hostiles . | . . . Robots Corrupted 3 | . 1 2 Combat Hostiles 2 | . . 2 Parts Fried 1 | . 1 . Impact Corruptions 11 | . 3 8 Robots Melted . | . . . Combat Hostiles . | . . . Parts Melted . | . . . Heat Transferred . | . . . Parts Sabotaged . | . . . Parts Stolen . | . . . Parts Stripped . | . . . Power Chain Reactions . | . . . Alert | -11 -10 -10 ------- Run | Yrd Mat Min Maximum Alert Level . | . . . Low Security (%) 100 | 100 100 100 Level 1 . | . . . Level 2 . | . . . Level 3 . | . . . Level 4 . | . . . Level 5 . | . . . High Security . | . . . Max Security . | . . . Peak Influence 95 | . 95 50 Initial 4 | . . 4 Average 17 | . 23 9 Influence Increases 368 | . 233 135 Destroy 0b10 Robot/C 180 | . 120 60 Destroy 0b10 Robot/NC 25 | . 20 5 Destroy Leader 46 | . 36 10 Successful Hack 11 | . 11 . Destroy Structure 1 | . 1 . Partial Spotted 15 | . 15 . Lose Combat Pursuer 90 | . 30 60 Influence Decreases 358 | . 221 137 Entered New Map 8 | . . 8 Time Decay 271 | . 182 89 Lost Part 60 | . 20 40 Purge Threat 19 | . 19 . Squads Dispatched . | . . . Investigation . | . . . Extermination . | . . . Reinforcement . | . . . Assault . | . . . Garrison . | . . . Intercept . | . . . Searches Triggered . | . . . Construction Impeded . | . . . Haulers Reinforced . | . . . Active Scanning Responses . | . . . Cargo Convoy Interrupts . | . . . Stealth | -11 -10 -10 --------- Run | Yrd Mat Min Distress Signals 1 | . 1 . Communications Jammed . | . . . Distress Signals . | . . . Times Spotted 24 | . 11 13 Peak Tracking Total 6 | . 4 6 Tactical Retreats 4 | . 1 3 Traps | -11 -10 -10 ------- Run | Yrd Mat Min Traps Triggered 1 | . 1 . Indirectly . | . . . Trap Hack Attempts . | . . . Triggered . | . . . Disarmed . | . . . Reprogrammed . | . . . Reused . | . . . Traps Extracted . | . . . Installed . | . . . Triggered . | . . . Machines | -11 -10 -10 ---------- Run | Yrd Mat Min Machines Disabled . | . . . Max in Single Turn . | . . . Machines Repaired . | . . . Machines Dismantled . | . . . Machines Sabotaged . | . . . Overloaded Fab Kills . | . . . Hacking | -11 -10 -10 --------- Run | Yrd Mat Min Machines Accessed 6 | . 6 . Terminals 6 | . 6 . Fabricators . | . . . Repair Stations . | . . . Recycling Units . | . . . Scanalyzers . | . . . Garrison Access . | . . . Total Hacks 21 | . 21 . Successful 13 | . 13 . Failed 8 | . 8 . Catastrophic 1 | . 1 . Database Lockouts . | . . . Manual 13 | . 13 . Terminals 21 | . 21 . Fabricators . | . . . Repair Stations . | . . . Recycling Units . | . . . Scanalyzers . | . . . Garrison Access . | . . . Terminal Hacks 9 | . 9 . Branch Access Points 1 | . 1 . Terminal Index 1 | . 1 . Alert Level 1 | . 1 . Unreport Threat 1 | . 1 . Patrol Status 2 | . 2 . Transport Status 1 | . 1 . Hauler Manifests 1 | . 1 . Zone Layout 1 | . 1 . Fabricator Hacks . | . . . Repair Station Hacks . | . . . Recycling Unit Hacks . | . . . Scanalyzer . | . . . Garrison Access Hacks . | . . . Unauthorized Hacks 4 | . 4 . Terminals 4 | . 4 . Botnet 4 | . 4 . Fabricators . | . . . Repair Stations . | . . . Recycling Units . | . . . Scanalyzers . | . . . Garrison Access . | . . . Data Cores Recovered . | . . . Used . | . . . Hacking Detections 5 | . 5 . Full Trace Events 1 | . 1 . Feedback Events . | . . . Feedback Blocked . | . . . Robot Schematics Acquired . | . . . Robots Built . | . . . Authchips . | . . . Time . | . . . Total Robot Build Rating . | . . . Part Schematics Acquired . | . . . Parts Built . | . . . Authchips . | . . . Time . | . . . Total Part Build Rating . | . . . Part Studies Acquired . | . . . Parts Repaired . | . . . Time . | . . . Parts Recycled . | . . . Recycled Matter . | . . . Retrieved Matter . | . . . Retrieved Components . | . . . Parts Scanalyzed . | . . . Part Schematics Acquired . | . . . Parts Damaged . | . . . Bothacking | -11 -10 -10 ------------ Run | Yrd Mat Min Used RIF Installer . | . . . Robots Hacked . | . . . Non-combat . | . . . Combat . | . . . Robot Hacks Applied . | . . . Relay Couplers Released . | . . . Fabnet Peak Effective % . | . . . Robots Rewired . | . . . Allies Hacked . | . . . Hacks Repelled . | . . . Allies | -11 -10 -10 -------- Run | Yrd Mat Min Total Allies . | . . . Largest Group . | . . . Highest-Rated Group . | . . . Highest-Rated Ally . | . . . Total Orders . | . . . Ally Attacks . | . . . Total Damage . | . . . Kills . | . . . Allies Corrupted . | . . . Allies Melted . | . . . Intel | -11 -10 -10 ------- Run | Yrd Mat Min Active Infowar (turns) . | . . . Robot Analysis Total . | . . . Derelict Logs Recovered . | . . . Drone Launches . | . . . Drone Recoveries . | . . . Exploration | -11 -10 -10 ------------- Run | Yrd Mat Min Turns Passed 1351 | 83 853 415 Spaces Moved 738 | 47 448 243 Core 5 | 5 . . Treads 532 | 42 448 42 Legs 1 | . . 1 Wheels 200 | . . 200 Hover . | . . . Flight . | . . . Fastest Speed 50 | 50 160 100 Average Speed 146 | 148 160 121 Slowest Speed 260 | 160 160 260 Overloaded Moves . | . . . Propulsion Burnouts . | . . . Robots Hopped . | . . . Potential Cave-ins . | . . . Cave-ins Triggered . | . . . Exploration Rate (%) 39 | 4 69 45 Regions Visited 2 Branch Regions 1 Pre-discovered Areas . | . . . Known Exits Taken 1 | . 1 . Unknown Exits Taken 1 | 1 . . Scrap Searched 1 | . . 1 Spaces Dug 1 | . 1 . Terrain Destroyed 1 | . 1 . Melee 1 | . 1 . Projectile . | . . . AOE . | . . . Terrain Rammed . | . . . Walls Destroyed . | . . . Machines Disabled . | . . . Actions | -11 -10 -10 --------- Run | Yrd Mat Min Total 900 | 57 527 316 Wait 47 | . 21 26 Move 736 | 46 447 243 Hop . | . . . Pick Up 18 | 5 7 6 Fast Attach 13 | 6 5 2 Attach 4 | . 2 2 Detach . | . . . Swap 5 | . 4 1 Drop 16 | . 8 8 Fire 27 | . 27 . Melee 32 | . 4 28 Ram . | . . . Kick . | . . . Crush 2 | . 2 . Escape Stasis . | . . . Rewire . | . . . Trap . | . . . Miscellaneous . | . . . Route ------- -11/Scrapyard -10/Materials (discovered 3 exits: [*Mat] / *Min x2) -10/Mines History --------- Turn | Location | Event 33 | -11/Scrapyard | Discovered new exit (range 16) 84 | -11/Scrapyard | Entered Materials 145 | -10/Materials | Discovered new exit (range 16) 208 | -10/Materials | Discovered new exit (range 16) 229 | -10/Materials | Identified exit to Mines 307 | -10/Materials | Build established: Mutant 937 | -10/Materials | Entered Mines 944 | -10/Mines | Received a Rocket Launcher from a helpful Derelict 988 | -10/Mines | Found a Scrap Suit stashed away for nefarious purposes 993 | -10/Mines | Found Scrap Suit 1275 | -10/Mines | Excavation squad dispatched 1275 | -10/Mines | A large section of the Mines collapsed 1283 | -10/Mines | Core integrity fell below 50% 1347 | -10/Mines | Core integrity fell below 20% 1352 | -10/Mines | Destroyed by G-34 Mercenary with Small Laser Last Messages --------------- derelict activity in mines. Dispatching escorted excavation squad. 01292_ Destroyed Asb. Hover Unit. 01292_ as-93301 system corrupted by crushing effect. 01295_ as-93301 suffers critical hit (Smash). 01295_ Destroyed Asb. Blade. 01295_ as-93301 system corrupted by crushing effect. 01295_ as-93301 destroyed. 01296_ Lgt. Nuclear Core destroyed. 01297_ Acquired 5 matter. 01307_ Sneak attack on K-01 Serf. 01307_ Destroyed Med. Matter Pod. 01307_ K-01 Serf system corrupted by crushing effect. 01307_ K-01 Serf destroyed. 01312_ Rocket Launcher destroyed. 01339_ S-10 Pest destroyed. 01344_ Aluminum Leg destroyed. Map ----- +----------------------------------------------------+ | ?????????????????????????????????????????? | | ?????????????????????????????????????????? | | ?????????????????????????????????????????? | | ?????????????????????????????????????????? | | ?????????????????????????????????????????? | | ?????????????????????????????????????????? | | ?????????????????????????????????????????? | | ?????????????????????????????????????????? | | ?????????????????????????????????????????? | | ?????????????????????????????????????????? | | ?????????????????????????????????????????? | | ?????????????????????????????????????????? | | ?????????????????????????????????????????? | | ?????????????????????????????????????????? | | ?????????????????????##??????????????????? | | ????????????????#??### ??????????????????? | | ??????????????? ?## ??????????????????? | | ?????????????? ?## ??????????????????? | | ????????????? ??# g ??????????????????? | | ????????????? #??# g##???????????? #??? | | ???????????? ##??# t r#####?????? #??? | | ??????????? #?## ##### #???? | | ??????????# ### #???? | | ??????#### ## #????? | | ?????## # ### g g #????? | | ????##" ## # ##t @ #????? | | ?#####"#"# ## t##### #???? | | ## ## # ### ##????????? #??? | | # ##"## ### * #???????????????? | | # ## ## ##?# [%= #???????????????? | | # ##"#####??## ### ##???????????????? | | ###%##???????# #??# #????????????????? | | ##"##????????## #???# #????????????????? | | # #####??####?### ##### #????????????????? | | ## ###### ##### #????????????????? | | "### #######????????????????? | | ""# #??????????????????????? | | """ ######??????????????????????? | | ## #???????????????????????????? | | ####### ##???????????????????????????? | | ##?????####????????????????????????????? | | ###??????????????????????????????????????? | | ?????????????????????????????????????????? | | ?????????????????????????????????????????? | | ?????????????????????????????????????????? | | ?????????????????????????????????????????? | | | | | | | | | +----------------------------------------------------+ Best States ------------- Heat Dissipation 35 Energy Generation 14 Energy Capacity 250 Matter Stores 300 Matter Capacity 300 Sight Range 16 Terrain Scan Density 10 Core Shielding 20 Evasion (%) 40 Recoil Reduction 2 Item Schematics ----------------- None Robot Schematics ------------------ None Fabricated ------------ Nothing Repaired ---------- Nothing Studied --------- None Alien Tech Used ----------------- None Achievements -------------- None Challenges ------------ None Game ------ Seed LauncherSuperquantumField Manual? 0 Play Time 00:17:11 Cumulative 46.5 hours Start 2026.07.29 @ 00:13:22 End 2026.07.29 @ 00:45:56 Sessions 1 Manual Loads 0 Difficulty Rogue Special Mode None Game No. 69 Rogue 69 Adventurer 0 Explorer 0 Win Type - Total 1 Types 1/0/0/0/0/0/0/0/0/0 Lore% 29 Gallery% 33 Achievement% 22 Wizard Run 0 Options --------- Layout 1 ASCII 0 Keyboard 0 Movement Mouse Keybinds 0 Fullscreen 2 Font 32/SmallcapsGlow Map View 50x35 Zoom Use 0% Tactical HUD 1 Map Filters NONE Filters NONE Steam 1 RUN: a71497de-3e83-4e5c-9c5a-5859fd2af2d2